fUSD/lending_fUSD_20250119
["ID","MTS","AMOUNT","RATE_DAILY","PERIOD"]
[349594302,1737319844227,-500.0,0.00019452,2]
[349594304,1737319844239,-535.64479473,0.00019452,2]
[349594306,1737319844248,-500.0,0.00019452,2]
[349594308,1737319844257,-500.0,0.00019452,2]
[349594310,1737319844267,-500.0,0.00019452,2]
[349594312,1737319844277,-500.0,0.00019452,2]
[349594314,1737319844286,-500.0,0.00019452,2]
[349594316,1737319844295,-500.0,0.00019452,2]
[349594318,1737319844304,-500.0,0.00019452,2]
[349594320,1737319844315,-500.0,0.00019452,2]
[349594322,1737319844324,-500.0,0.00019452,2]
[349594324,1737319844333,-170.28923409,0.00019452,2]
[349594326,1737319844342,-500.0,0.00019452,2]
[349594327,1737319844352,-592.41195896,0.00019452,2]
[349594329,1737319844362,-500.0,0.00019452,2]
[349594331,1737319844371,-393.19941252,0.00019452,2]
[349594333,1737319844380,-500.0,0.00019452,2]
[349594335,1737319844389,-161.18730765,0.00019452,2]
[349594369,1737319844695,-338.81269235,0.00019452,2]
[349594371,1737319844704,-500.0,0.00019452,2]
[349594373,1737319844713,-500.0,0.00019452,2]
[349594375,1737319844723,-500.0,0.00019452,2]
[349594377,1737319844735,-500.0,0.00019452,2]
[349594379,1737319844744,-500.0,0.00019452,2]
[349594381,1737319844753,-500.0,0.00019452,2]
[349594383,1737319844762,-500.0,0.00019452,2]
[349594385,1737319844771,-500.0,0.00019452,2]
[349594387,1737319844780,-500.0,0.00019452,2]
[349594389,1737319844790,-500.0,0.00019452,2]
[349594391,1737319844799,-500.0,0.00019452,2]
[349594393,1737319844808,-492.45492877,0.00019452,2]
[349594395,1737319844817,-351.15721417,0.00019452,2]
[349594397,1737319844826,-500.0,0.00019452,2]
[349594399,1737319844835,-500.0,0.00019452,2]
[349594401,1737319844845,-831.75,0.00019452,2]
[349594403,1737319844854,-500.0,0.00019452,2]
[349594405,1737319844863,-500.0,0.00019452,2]
[349594407,1737319844873,-500.0,0.00019452,2]
[349594409,1737319844882,-500.0,0.00019452,2]
[349594411,1737319844891,-367.74814023,0.00019452,2]
[349594413,1737319844901,-500.0,0.00019452,2]
[349594415,1737319844910,-500.0,0.00019452,2]
[349594417,1737319844919,-524.66,0.00019452,2]
[349594419,1737319844929,-500.0,0.00019452,2]
[349594421,1737319844939,-500.0,0.00019452,2]
[349594423,1737319844948,-762.75,0.00019452,2]
[349594425,1737319844958,-500.0,0.00019452,2]
[349594427,1737319844968,-500.0,0.00019452,2]
[349594429,1737319844980,-827.84,0.00019452,2]
[349594431,1737319844989,-500.0,0.00019452,2]
[349594433,1737319844999,-500.0,0.00019452,2]
[349594435,1737319845008,-501.52,0.00019452,2]
[349594437,1737319845018,-500.0,0.00019452,2]
[349594439,1737319845028,-1000.0,0.00019452,2]
[349594441,1737319845037,-559.02,0.00019452,2]
[349594443,1737319845047,-984.59,0.00019452,2]
[349594445,1737319845057,-500.0,0.00019452,2]
[349594447,1737319845066,-500.0,0.00019452,2]
[349594449,1737319845076,-544.64,0.00019452,2]
[349594451,1737319845085,-500.0,0.00019452,2]
[349594453,1737319845094,-750.14,0.00019452,2]
[349594455,1737319845103,-500.0,0.00019452,2]
[349594457,1737319845112,-514.0,0.00019452,2]
[349594459,1737319845121,-1213.83,0.00019452,2]
[349594461,1737319845130,-1207.77,0.00019452,2]
[349594463,1737319845140,-444.8642024,0.00019452,2]
[349594465,1737319845150,-629.74,0.00019452,2]
[349594467,1737319845159,-530.65939698,0.00019452,2]
[349594469,1737319845170,-500.0,0.00019452,2]
[349594471,1737319845179,-1321.7,0.00019452,2]
[349594473,1737319845194,-191.78,0.00019452,2]
[349594475,1737319845204,-500.0,0.00019452,2]
[349594477,1737319845214,-500.0,0.00019452,2]
[349594479,1737319845224,-716.77,0.00019452,2]
[349594481,1737319845235,-500.0,0.00019452,2]
[349594482,1737319845244,-850.48,0.00019452,2]
[349594484,1737319845253,-500.0,0.00019452,2]
[349594486,1737319845263,-500.0,0.00019452,2]
[349594488,1737319845272,-500.0,0.00019452,2]
[349594490,1737319845282,-845.24,0.00019452,2]
[349594492,1737319845292,-500.0,0.00019452,2]
[349594494,1737319845302,-500.0,0.00019452,2]
[349594496,1737319845312,-1204.65,0.00019452,2]
[349594498,1737319845321,-500.08,0.00019452,2]
[349594500,1737319845331,-661.1,0.00019452,2]
[349594502,1737319845341,-1217.53,0.00019452,2]
[349594504,1737319845350,-523.28,0.00019452,2]
[349594506,1737319845359,-500.0,0.00019452,2]
[349594508,1737319845368,-931.75,0.00019452,2]
[349594510,1737319845378,-1017.76,0.00019452,2]
[349594512,1737319845389,-500.0,0.00019452,2]
[349594514,1737319845399,-500.0,0.00019452,2]
[349594516,1737319845408,-798.16,0.00019452,2]
[349594518,1737319845417,-1170.99,0.00019452,2]
[349594520,1737319845427,-500.0,0.00019452,2]
[349594522,1737319845436,-500.0,0.00019452,2]
[349594524,1737319845446,-621.12,0.00019452,2]
[349594526,1737319845455,-1227.74,0.00019452,2]
[349594528,1737319845464,-500.0,0.00019452,2]
[349594530,1737319845474,-500.0,0.00019452,2]
[349594532,1737319845485,-1383.43,0.00019452,2]
[349594534,1737319845494,-500.0,0.00019452,2]
[349594536,1737319845503,-500.0,0.00019452,2]
[349594538,1737319845512,-500.0,0.00019452,2]
[349594539,1737319845521,-2374.66,0.00019452,2]
[349594542,1737319845531,-500.0,0.00019452,2]
[349594543,1737319845540,-500.0,0.00019452,2]
[349594545,1737319845549,-500.0,0.00019452,2]
[349594547,1737319845559,-500.0,0.00019452,2]
[349594550,1737319845568,-500.0,0.00019452,2]
[349594552,1737319845578,-504.37,0.00019452,2]
[349594554,1737319845587,-500.0,0.00019452,2]
[349594556,1737319845596,-500.0,0.00019452,2]
[349594558,1737319845605,-500.0,0.00019452,2]
[349594560,1737319845616,-500.0,0.00019452,2]
[349594562,1737319845625,-225.06703497,0.00019452,2]
[349594564,1737319845638,-274.93296503,0.00019452,2]
[349594566,1737319845647,-500.0,0.00019452,2]
[349594568,1737319845656,-500.0,0.00019452,2]
[349594569,1737319845666,-824.21,0.00019452,2]
[349594570,1737319845675,-500.0,0.00019452,2]
[349594571,1737319845685,-500.0,0.00019452,2]
[349594572,1737319845708,-1017.7,0.00019452,2]
[349594573,1737319845722,-500.0,0.00019452,2]
[349594574,1737319845733,-500.0,0.00019452,2]
[349594575,1737319845742,-500.0,0.00019452,2]
[349594577,1737319845751,-500.0,0.00019452,2]
[349594579,1737319845760,-500.0,0.00019452,2]
[349594581,1737319845770,-500.0,0.00019452,2]
[349594583,1737319845779,-500.0,0.00019452,2]
[349594585,1737319845788,-500.0,0.00019452,2]
[349594587,1737319845798,-500.0,0.00019452,2]
[349594589,1737319845807,-500.0,0.00019452,2]
[349594591,1737319845817,-600.0,0.00019452,2]
[349594593,1737319845826,-500.0,0.00019452,2]
[349594595,1737319845836,-303.15703497,0.00019452,2]
[349594626,1737319846148,-196.84296503,0.00019452,2]
[349594628,1737319846157,-500.0,0.00019452,2]
[349594629,1737319846167,-500.0,0.00019452,2]
[349594630,1737319846177,-500.0,0.00019452,2]
[349594632,1737319846188,-500.0,0.00019452,2]
[349594634,1737319846198,-514.83,0.00019452,2]
[349594636,1737319846207,-500.0,0.00019452,2]
[349594637,1737319846217,-500.0,0.00019452,2]
[349594638,1737319846227,-1058.56,0.00019646,2]
[349594639,1737319846237,-523.0,0.00019663,2]
[349594640,1737319846247,-1090.89,0.00019726,2]
[349594641,1737319846256,-500.0,0.00019726,2]
[349594642,1737319846266,-500.0,0.00019726,2]
[349594643,1737319846276,-500.0,0.00019726,2]
[349594644,1737319846287,-485.30188789,0.00019726,2]
[349594645,1737319846297,-500.0,0.00019726,2]
[349594646,1737319846306,-500.0,0.00019726,2]
[349594647,1737319846315,-500.0,0.00019726,2]
[349594648,1737319846325,-500.0,0.00019726,2]
[349594649,1737319846334,-500.0,0.00019726,2]
[349594650,1737319846344,-500.0,0.00019726,2]
[349594651,1737319846353,-500.0,0.00019726,2]
[349594652,1737319846363,-500.0,0.00019726,2]
[349594653,1737319846372,-601.10762406,0.00019726,2]
[349594654,1737319846382,-416.63,0.00019726,2]
[349594655,1737319846392,-500.0,0.00019726,2]
[349594656,1737319846402,-1000.0,0.00019726,14]
[349594657,1737319846411,-215.62600046,0.00019726,2]
[349594658,1737319846420,-500.0,0.00019726,2]
[349594659,1737319846430,-500.0,0.00019726,2]
[349594660,1737319846439,-500.0,0.00019726,2]
[349594661,1737319846449,-500.0,0.00019726,2]
[349594662,1737319846458,-500.0,0.00019726,2]
[349594663,1737319846468,-500.0,0.00019726,2]
[349594664,1737319846477,-500.0,0.00019726,2]
[349594665,1737319846486,-500.0,0.00019726,2]
[349594666,1737319846496,-500.0,0.00019726,2]
[349594667,1737319846505,-500.0,0.00019726,2]
[349594668,1737319846515,-500.0,0.00019726,2]
[349594669,1737319846524,-831.75,0.00019726,2]
[349594670,1737319846533,-500.0,0.00019726,2]
[349594671,1737319846543,-500.0,0.00019726,2]
[349594672,1737319846552,-500.0,0.00019726,2]
[349594673,1737319846561,-500.0,0.00019726,2]
[349594674,1737319846570,-500.0,0.00019726,2]
[349594675,1737319846580,-524.66,0.00019726,2]
[349594676,1737319846589,-500.0,0.00019726,2]
[349594677,1737319846598,-456.12223951,0.00019726,2]
[349594678,1737319846607,-432.99,0.00019726,2]
[349594680,1737319846616,-500.0,0.00019726,2]
[349594681,1737319846625,-827.84,0.00019726,2]
[349594682,1737319846634,-500.0,0.00019726,2]
[349594683,1737319846644,-500.0,0.00019726,2]
[349594684,1737319846653,-501.52,0.00019726,2]
[349594685,1737319846663,-500.0,0.00019726,2]
[349594687,1737319846672,-205.92,0.00019726,2]
[349594688,1737319846681,-984.59,0.00019726,2]
[349594689,1737319846690,-500.0,0.00019726,2]
[349594690,1737319846700,-500.0,0.00019726,2]
[349594691,1737319846710,-544.64,0.00019726,2]
[349594692,1737319846724,-500.0,0.00019726,2]
[349594693,1737319846735,-750.14,0.00019726,2]
[349594694,1737319846745,-500.0,0.00019726,2]
[349594695,1737319846755,-514.0,0.00019726,2]
[349594696,1737319846765,-1213.83,0.00019726,2]
[349594697,1737319846775,-1207.77,0.00019726,2]
[349594698,1737319846784,-629.74,0.00019726,2]
[349594699,1737319846794,-329.75152437,0.00019726,2]
[349594700,1737319846803,-1321.7,0.00019726,2]
[349594701,1737319846813,-500.0,0.00019726,2]
[349594702,1737319846822,-500.0,0.00019726,2]
[349594703,1737319846831,-716.77,0.00019726,2]
[349594704,1737319846840,-503.94289847,0.00019726,2]
[349594705,1737319846850,-850.48,0.00019726,2]
[349594706,1737319846858,-500.0,0.00019726,2]
[349594707,1737319846867,-500.0,0.00019726,2]
[349594708,1737319846877,-369.18998491,0.00019726,2]
[349594709,1737319846886,-845.24,0.00019726,2]
[349594710,1737319846895,-500.0,0.00019726,2]
[349594711,1737319846904,-500.0,0.00019726,2]
[349594712,1737319846914,-1204.65,0.00019726,2]
[349594713,1737319846923,-661.1,0.00019726,2]
[349594714,1737319846932,-1217.53,0.00019726,2]
[349594715,1737319846941,-523.28,0.00019726,2]
[349594716,1737319846950,-589.55155464,0.00019726,2]
[349594717,1737319846959,-931.75,0.00019726,2]
[349594718,1737319846969,-1017.76,0.00019726,2]
[349594719,1737319846980,-500.0,0.00019726,2]
[349594720,1737319846989,-500.0,0.00019726,2]
[349594721,1737319846999,-798.16,0.00019726,2]
[349594722,1737319847009,-1170.99,0.00019726,2]
[349594723,1737319847018,-500.0,0.00019726,2]
[349594724,1737319847027,-500.0,0.00019726,2]
[349594725,1737319847036,-621.12,0.00019726,2]
[349594726,1737319847045,-1227.74,0.00019726,2]
[349594727,1737319847055,-500.0,0.00019726,2]
[349594728,1737319847063,-500.0,0.00019726,2]
[349594729,1737319847073,-1383.43,0.00019726,2]
[349594730,1737319847082,-500.0,0.00019726,2]
[349594731,1737319847091,-500.0,0.00019726,2]
[349594732,1737319847101,-500.0,0.00019726,2]
[349594733,1737319847111,-2374.66,0.00019726,2]
[349594734,1737319847120,-500.0,0.00019726,2]
[349594735,1737319847129,-500.0,0.00019726,2]
[349594736,1737319847139,-500.0,0.00019726,2]
[349594737,1737319847148,-500.0,0.00019726,2]
[349594738,1737319847158,-500.0,0.00019726,2]
[349594739,1737319847167,-504.37,0.00019726,2]
[349594740,1737319847177,-500.0,0.00019726,2]
[349594741,1737319847188,-500.0,0.00019726,2]
[349594742,1737319847198,-500.0,0.00019726,2]
[349594743,1737319847208,-500.0,0.00019726,2]
[349594744,1737319847218,-500.0,0.00019726,2]
[349594745,1737319847228,-500.0,0.00019726,2]
[349594746,1737319847238,-824.21,0.00019726,2]
[349594747,1737319847247,-500.0,0.00019726,2]
[349594748,1737319847256,-500.0,0.00019726,2]
[349594749,1737319847266,-1017.7,0.00019726,2]
[349594750,1737319847275,-500.0,0.00019726,2]
[349594751,1737319847284,-500.0,0.00019726,2]
[349594752,1737319847293,-500.0,0.00019726,2]
[349594753,1737319847302,-500.0,0.00019726,2]
[349594754,1737319847311,-500.0,0.00019726,2]
[349594755,1737319847320,-500.0,0.00019726,2]
[349594756,1737319847329,-500.0,0.00019726,2]
[349594757,1737319847338,-500.0,0.00019726,2]
[349594758,1737319847347,-500.0,0.00019726,2]
[349594759,1737319847357,-500.0,0.00019726,2]
[349594760,1737319847366,-500.0,0.00019726,2]
[349594761,1737319847375,-500.0,0.00019726,2]
[349594762,1737319847388,-500.0,0.00019726,2]
[349594763,1737319847397,-500.0,0.00019726,2]
[349594764,1737319847406,-500.0,0.00019726,2]
[349594765,1737319847415,-514.83,0.00019726,2]
[349594766,1737319847425,-500.0,0.00019726,2]
[349594767,1737319847434,-500.0,0.00019726,2]
[349594768,1737319847444,-1000.0,0.00019799,2]
[349594769,1737319847453,-151.98943468,0.00019805,2]
[349594770,1737319847462,-1090.89,0.0002,2]
[349594771,1737319847471,-500.0,0.0002,2]
[349594772,1737319847482,-500.0,0.0002,2]
[349594773,1737319847491,-500.0,0.0002,2]
[349594774,1737319847500,-601.98856205,0.0002,2]
[349594775,1737319847509,-500.0,0.0002,2]
[349594776,1737319847519,-500.0,0.0002,2]
[349594777,1737319847528,-500.0,0.0002,2]
[349594778,1737319847537,-500.0,0.0002,2]
[349594779,1737319847546,-500.0,0.0002,2]
[349594780,1737319847555,-500.0,0.0002,2]
[349594781,1737319847566,-509.37233685,0.0002,2]
[349594782,1737319847575,-500.0,0.0002,2]
[349594783,1737319847584,-328.06676072,0.0002,14]
[349594784,1737319847597,-671.93323928,0.0002,14]
[349594785,1737319847606,-232.25962585,0.0002,2]
[349594786,1737319847617,-267.74037415,0.0002,2]
[349594787,1737319847626,-500.0,0.0002,2]
[349594788,1737319847635,-500.0,0.0002,2]
[349594789,1737319847644,-500.0,0.0002,2]
[349594790,1737319847653,-500.0,0.0002,2]
[349594791,1737319847662,-500.0,0.0002,2]
[349594792,1737319847671,-500.0,0.0002,2]
[349594793,1737319847679,-500.0,0.0002,2]
[349594794,1737319847689,-500.0,0.0002,2]
[349594795,1737319847698,-500.0,0.0002,2]
[349594796,1737319847707,-831.75,0.0002,2]
[349594797,1737319847715,-500.0,0.0002,2]
[349594798,1737319847725,-500.0,0.0002,2]
[349594799,1737319847735,-500.0,0.0002,2]
[349594800,1737319847744,-500.0,0.0002,2]
[349594801,1737319847754,-524.66,0.0002,2]
[349594802,1737319847763,-349.2435245,0.0002,2]
[349594803,1737319847772,-500.0,0.0002,2]
[349594804,1737319847781,-827.84,0.0002,2]
[349594805,1737319847790,-500.0,0.0002,2]
[349594806,1737319847798,-500.0,0.0002,2]
[349594807,1737319847807,-501.52,0.0002,2]
[349594808,1737319847816,-500.0,0.0002,2]
[349594809,1737319847825,-984.59,0.0002,2]
[349594810,1737319847834,-500.0,0.0002,2]
[349594811,1737319847843,-500.0,0.0002,2]
[349594812,1737319847852,-544.64,0.0002,2]
[349594813,1737319847860,-500.0,0.0002,2]
[349594814,1737319847870,-750.14,0.0002,2]
[349594815,1737319847878,-485.63,0.0002,2]
[349594816,1737319847887,-514.0,0.0002,2]
[349594817,1737319847896,-1213.83,0.0002,2]
[349594818,1737319847905,-1207.77,0.0002,2]
[349594819,1737319847914,-629.74,0.0002,2]
[349594820,1737319847923,-1321.7,0.0002,2]
[349594821,1737319848070,-333.31,0.0002,2]
[349594822,1737319848080,-500.0,0.0002,2]
[349594823,1737319848090,-716.77,0.0002,2]
[349594824,1737319848099,-850.48,0.0002,2]
[349594825,1737319848108,-500.0,0.0002,2]
[349594826,1737319848117,-500.0,0.0002,2]
[349594827,1737319848126,-845.24,0.0002,2]
[349594828,1737319848136,-500.0,0.0002,2]
[349594829,1737319848145,-500.0,0.0002,2]
[349594830,1737319848154,-1204.65,0.0002,2]
[349594831,1737319848164,-661.1,0.0002,2]
[349594832,1737319848173,-1217.53,0.0002,2]
[349594833,1737319848183,-523.28,0.0002,2]
[349594834,1737319848192,-931.75,0.0002,2]
[349594835,1737319848202,-1017.76,0.0002,2]
[349594836,1737319848213,-500.0,0.0002,2]
[349594837,1737319848222,-500.0,0.0002,2]
[349594838,1737319848234,-798.16,0.0002,2]
[349594839,1737319848245,-1170.99,0.0002,2]
[349594840,1737319848255,-500.0,0.0002,2]
[349594841,1737319848264,-500.0,0.0002,2]
[349594842,1737319848275,-621.12,0.0002,2]
[349594843,1737319848285,-1227.74,0.0002,2]
[349594844,1737319848295,-539.87240904,0.0002,2]
[349594845,1737319848304,-500.0,0.0002,2]
[349594846,1737319848313,-400.45366131,0.0002,2]
[349594847,1737319848326,-982.97633869,0.0002,2]
[349594848,1737319848335,-500.0,0.0002,2]
[349594849,1737319848345,-500.0,0.0002,2]
[349594850,1737319848354,-500.0,0.0002,2]
[349594851,1737319848363,-2374.66,0.0002,2]
[349594852,1737319848373,-200.63,0.0002,2]
[349594853,1737319848383,-500.0,0.0002,2]
[349594854,1737319848393,-500.0,0.0002,2]
[349594855,1737319848403,-313.17366131,0.0002,2]
[349594856,1737319848416,-186.82633869,0.0002,2]
[349594857,1737319848426,-504.37,0.0002,2]
[349594858,1737319848436,-500.0,0.0002,2]
[349594859,1737319848446,-500.0,0.0002,2]
[349594860,1737319848456,-68.80366139,0.0002,2]
[349594861,1737319848472,-431.19633861,0.0002,2]
[349594862,1737319848484,-500.0,0.0002,2]
[349594863,1737319848494,-500.0,0.0002,2]
[349594864,1737319848504,-500.0,0.0002,2]
[349594865,1737319848514,-824.21,0.0002,2]
[349594866,1737319848524,-166.7380219,0.0002,2]
[349594867,1737319848534,-500.0,0.0002,2]
[349594868,1737319848544,-1017.7,0.0002,2]
[349594869,1737319848554,-500.0,0.0002,2]
[349594870,1737319848563,-500.0,0.0002,2]
[349594871,1737319848573,-500.0,0.0002,2]
[349594872,1737319848583,-500.0,0.0002,2]
[349594873,1737319848592,-500.0,0.0002,2]
[349594874,1737319848602,-500.0,0.0002,2]
[349594875,1737319848611,-500.0,0.0002,2]
[349594876,1737319848621,-500.0,0.0002,2]
[349594877,1737319848631,-500.0,0.0002,2]
[349594878,1737319848641,-500.0,0.0002,2]
[349594879,1737319848651,-500.0,0.0002,2]
[349594880,1737319848660,-500.0,0.0002,2]
[349594881,1737319848670,-500.0,0.0002,2]
[349594882,1737319848679,-500.0,0.0002,2]
[349594883,1737319848689,-500.0,0.0002,2]
[349594884,1737319848699,-514.83,0.0002,2]
[349594885,1737319848709,-500.0,0.0002,2]
[349594886,1737319848718,-500.0,0.0002,2]
[349594887,1737319848730,-1915.43596659,0.00020024,2]
[349594888,1737319848740,-1090.89,0.00020273,2]
[349594889,1737319848749,-500.0,0.00020273,2]
[349594890,1737319848759,-500.0,0.00020273,2]
[349594891,1737319848768,-500.0,0.00020273,2]
[349594892,1737319848777,-500.0,0.00020273,2]
[349594893,1737319848787,-500.0,0.00020273,2]
[349594894,1737319848796,-500.0,0.00020273,2]
[349594895,1737319848805,-500.0,0.00020273,2]
[349594896,1737319848814,-630.42581237,0.00020273,2]
[349594897,1737319848823,-215.83324742,0.00020273,2]
[349594898,1737319848833,-511.26,0.00020273,2]
[349594899,1737319848842,-500.0,0.00020273,2]
[349594900,1737319848851,-500.0,0.00020273,2]
[349594901,1737319848861,-500.0,0.00020273,2]
[349594902,1737319848871,-500.0,0.00020273,2]
[349594903,1737319848879,-500.0,0.00020273,2]
[349594904,1737319848889,-290.46039634,0.00020273,2]
[349594905,1737319848898,-500.0,0.00020273,2]
[349594906,1737319848907,-500.0,0.00020273,2]
[349594907,1737319848916,-831.75,0.00020273,2]
[349594908,1737319848926,-204.14,0.00020273,2]
[349594909,1737319848936,-500.0,0.00020273,2]
[349594910,1737319848949,-500.0,0.00020273,2]
[349594911,1737319848959,-500.0,0.00020273,2]
[349594912,1737319848969,-524.66,0.00020273,2]
[349594913,1737319848981,-500.0,0.00020273,2]
[349594914,1737319848990,-827.84,0.00020273,2]
[349594915,1737319848999,-500.0,0.00020273,2]
[349594916,1737319849008,-500.0,0.00020273,2]
[349594917,1737319849017,-501.52,0.00020273,2]
[349594918,1737319849027,-500.0,0.00020273,2]
[349594919,1737319849036,-984.59,0.00020273,2]
[349594920,1737319849045,-500.0,0.00020273,2]
[349594921,1737319849054,-500.0,0.00020273,2]
[349594922,1737319849063,-544.64,0.00020273,2]
[349594923,1737319849073,-500.0,0.00020273,2]
[349594924,1737319849082,-750.14,0.00020273,2]
[349594925,1737319849091,-514.0,0.00020273,2]
[349594926,1737319849101,-1213.83,0.00020273,2]
[349594927,1737319849111,-1207.77,0.00020273,2]
[349594928,1737319849120,-629.74,0.00020273,2]
[349594929,1737319849129,-1321.7,0.00020273,2]
[349594930,1737319849139,-434.90890033,0.00020273,2]
[349594931,1737319849148,-716.77,0.00020273,2]
[349594932,1737319849158,-850.48,0.00020273,2]
[349594933,1737319849167,-500.0,0.00020273,2]
[349594934,1737319849177,-500.0,0.00020273,2]
[349594935,1737319849189,-845.24,0.00020273,2]
[349594936,1737319849199,-500.0,0.00020273,2]
[349594937,1737319849209,-551.93504599,0.00020273,2]
[349594938,1737319849218,-1204.65,0.00020273,2]
[349594939,1737319849231,-661.1,0.00020273,2]
[349594940,1737319849241,-1217.53,0.00020273,2]
[349594941,1737319849254,-523.28,0.00020273,2]
[349594942,1737319849265,-931.75,0.00020273,2]
[349594943,1737319849275,-1017.76,0.00020273,2]
[349594944,1737319849287,-500.0,0.00020273,2]
[349594945,1737319849296,-500.0,0.00020273,2]
[349594946,1737319849306,-798.16,0.00020273,2]
[349594947,1737319849315,-1170.99,0.00020273,2]
[349594948,1737319849325,-500.0,0.00020273,2]
[349594949,1737319849334,-500.0,0.00020273,2]
[349594950,1737319849343,-621.12,0.00020273,2]
[349594951,1737319849352,-1227.74,0.00020273,2]
[349594952,1737319849361,-500.0,0.00020273,2]
[349594953,1737319849371,-1383.43,0.00020273,2]
[349594954,1737319849380,-500.0,0.00020273,2]
[349594955,1737319849390,-500.0,0.00020273,2]
[349594956,1737319849399,-500.0,0.00020273,2]
[349594957,1737319849408,-2374.66,0.00020273,2]
[349594958,1737319849417,-500.0,0.00020273,2]
[349594959,1737319849427,-500.0,0.00020273,2]
[349594960,1737319849436,-500.0,0.00020273,2]
[349594961,1737319849447,-504.37,0.00020273,2]
[349594962,1737319849457,-500.0,0.00020273,2]
[349594963,1737319849466,-304.72375884,0.00020273,2]
[349594964,1737319849476,-500.0,0.00020273,2]
[349594965,1737319849489,-500.0,0.00020273,2]
[349594966,1737319849500,-500.0,0.00020273,2]
[349594967,1737319849513,-500.0,0.00020273,2]
[349594968,1737319849524,-824.21,0.00020273,2]
[349594969,1737319849535,-640.97464923,0.00020273,2]
[349594970,1737319849545,-1017.7,0.00020273,2]
[349594971,1737319849555,-500.0,0.00020273,2]
[349594972,1737319849565,-500.0,0.00020273,2]
[349594973,1737319849575,-500.0,0.00020273,2]
[349594974,1737319849585,-500.0,0.00020273,2]
[349594975,1737319849595,-500.0,0.00020273,2]
[349594976,1737319849604,-500.0,0.00020273,2]
[349594977,1737319849614,-500.0,0.00020273,2]
[349594978,1737319849623,-500.0,0.00020273,2]
[349594979,1737319849633,-500.0,0.00020273,2]
[349594980,1737319849643,-500.0,0.00020273,2]
[349594981,1737319849653,-500.0,0.00020273,2]
[349594982,1737319849663,-500.0,0.00020273,2]
[349594983,1737319849673,-500.0,0.00020273,2]
[349594984,1737319849683,-500.0,0.00020273,2]
[349594985,1737319849693,-500.0,0.00020273,2]
[349594986,1737319849703,-514.83,0.00020273,2]
[349594987,1737319849712,-500.0,0.00020273,2]
[349594988,1737319849722,-500.0,0.00020273,2]
[349594989,1737319849731,-1090.89,0.00020547,2]
[349594990,1737319849741,-500.0,0.00020547,2]
[349594991,1737319849750,-500.0,0.00020547,2]
[349594992,1737319849760,-500.0,0.00020547,2]
[349594993,1737319849770,-500.0,0.00020547,2]
[349594994,1737319849779,-354.04370426,0.00020547,2]
[349594995,1737319849788,-500.0,0.00020547,2]